bitfinex/quotes_ETHUSD_20220311
["timestamp","ask_amount","ask_price","bid_price","bid_amount"]
[1646959152146,0.25,2601.4,2600.8,0.96125]
[1646959152344,0.04275818,2602.0,2600.9,1.42329]
[1646959152540,1.83811663,2601.9,2600.9,1.42329]
[1646959152738,1.58811663,2601.8,2600.9,1.42329]
[1646959153140,1.58811663,2601.8,2600.9,0.462]
[1646959153338,1.58811663,2601.8,2600.8,0.3]
[1646959153339,1.78031663,2601.8,2600.8,0.3]
[1646959153543,0.00441949,2601.5,2600.8,0.3]
[1646959153743,0.25,2601.4,2600.5,1.72352]
[1646959153950,0.9616,2601.3,2600.4,0.01804968]
[1646959154149,1.19581497,2601.3,2600.4,0.01804968]
[1646959154849,0.00441987,2601.0,2600.4,0.01804968]
[1646959155047,0.00441987,2601.0,2600.8,0.06090606]
[1646959155651,3.5,2601.2,2600.8,0.06090606]
[1646959155897,1.05919104,2601.0,2600.8,0.06090606]
[1646959156099,0.00441983,2601.0,2600.8,0.06090606]
[1646959156900,0.25,2601.4,2600.8,0.06090606]
[1646959157098,0.00441983,2601.0,2600.8,0.06090606]
[1646959157299,0.00441983,2601.0,2600.8,0.14800546]
[1646959157499,0.00441983,2601.0,2600.9,0.96134]
[1646959158099,0.00441983,2601.0,2600.9,0.96132]
[1646959158297,0.00427063,2601.1,2600.8,1.98356606]
[1646959159198,0.25,2601.2,2600.8,1.98356606]
[1646959159398,0.25,2601.2,2600.8,1.95348699]
[1646959159639,0.00427063,2601.1,2600.8,1.95348699]
[1646959160546,0.25,2601.2,2600.8,1.95348699]
[1646959160745,0.00427063,2601.1,2600.8,1.95348699]
[1646959161747,0.25,2601.2,2600.8,1.95348699]
[1646959161949,0.25,2601.2,2600.8,0.03082699]
[1646959161950,0.0041067,2601.1,2600.8,0.03082699]
[1646959162949,0.25,2601.2,2600.8,0.03082699]
[1646959163149,0.0041067,2601.1,2600.8,0.03082699]
[1646959163996,0.25,2601.2,2600.8,0.03082699]
[1646959164293,0.0041067,2601.1,2600.8,0.03082699]
[1646959165093,0.0041067,2601.1,2601.0,0.03059922]
[1646959165293,0.25,2601.2,2601.0,0.03059922]
[1646959165498,0.00411764,2601.1,2601.0,0.03059922]
[1646959166502,0.25,2601.2,2601.0,0.03059922]
[1646959166696,0.25411758,2601.2,2601.0,0.03059922]
[1646959167735,0.25,2601.2,2601.0,0.03059922]
[1646959167936,0.25411754,2601.2,2601.0,0.03059922]
[1646959169041,0.2541168,2601.2,2601.0,0.03059922]
[1646959169340,0.1356042,2600.6,2600.5,0.07464381]
[1646959171093,0.1356042,2600.6,2600.4,0.01804968]
[1646959171094,0.1356042,2600.6,2599.8,0.00411855]
[1646959171295,0.1356042,2600.6,2599.5,0.08549808]
[1646959171495,0.3279042,2600.6,2599.5,0.08549808]
[1646959171697,0.3279042,2600.6,2599.8,0.00411855]
[1646959171698,1.04142735,2600.1,2599.8,0.00411855]
[1646959172596,3.5,2600.0,2599.1,0.07533715]
[1646959172894,3.5,2600.0,2599.8,0.00404165]
[1646959173193,1.04142735,2600.1,2599.8,0.00404165]
[1646959173393,3.5,2600.0,2599.8,0.00404165]
[1646959173593,1.04142735,2600.1,2599.8,0.00404165]
[1646959173793,1.04142735,2600.1,2599.2,0.07256774]
[1646959173992,3.5,2600.0,2599.2,0.07256774]
[1646959174393,3.5,2600.0,2599.1,0.3]
[1646959174644,4.5,2600.0,2599.1,0.06916672]
[1646959174844,4.5,2600.0,2598.3,2.2612]
[1646959174845,0.81152778,2599.7,2598.3,2.2612]
[1646959175044,3.6923,2599.6,2598.4,0.07979355]
[1646959175243,4.6923,2599.6,2598.4,0.07979355]
[1646959175442,5.65473,2599.6,2598.2,1.05125134]
[1646959175741,5.65473,2599.6,2598.3,0.08615785]
[1646959175949,0.25,2599.2,2598.3,0.08615785]
[1646959176146,1.11993287,2598.9,2598.3,0.08615785]
[1646959176348,0.25,2599.2,2598.3,0.08615785]
[1646959176645,0.25,2599.2,2598.4,0.0903804]
[1646959177049,0.25,2599.2,2598.4,1.0526604]
[1646959177246,0.25,2599.2,2598.4,0.96228]
[1646959177447,0.25,2599.2,2598.5,0.37350351]
[1646959177649,1.06097611,2599.1,2598.7,0.00425996]
[1646959177847,0.25,2599.2,2598.7,0.00425996]
[1646959178051,0.25,2599.2,2598.7,0.96650996]
[1646959178293,0.25,2599.2,2598.8,0.08845602]
[1646959178793,0.25,2599.2,2598.8,0.09271587]
[1646959179093,0.97786806,2599.1,2598.8,0.09271587]
[1646959179693,0.97786806,2599.1,2598.8,0.08845602]
[1646959180096,0.03168063,2598.9,2598.8,0.09254883]
[1646959180896,0.03168063,2598.9,2598.8,0.08845602]
[1646959184551,0.03168063,2598.9,2598.8,0.13496367]
[1646959186295,0.03168063,2598.9,2598.8,0.04650765]
[1646959186894,0.22398063,2598.9,2598.8,0.04650765]
[1646959187891,0.03168063,2598.9,2598.8,0.04650765]
[1646959188492,4.49437063,2598.9,2598.8,0.04650765]
[1646959190544,0.03168063,2598.9,2598.7,0.06976147]
[1646959190746,0.03168063,2598.9,2598.7,0.07358098]
[1646959191547,0.03168063,2598.9,2598.7,0.1442601]
[1646959191747,0.03168063,2598.9,2598.7,0.14044059]
[1646959192148,0.03168063,2598.9,2598.7,0.14426013]
[1646959192747,0.03168063,2598.9,2598.7,0.37358101]
[1646959193050,0.03168063,2598.9,2598.7,0.36976147]
[1646959193296,0.03168063,2598.9,2598.7,0.0735811]
[1646959194099,0.03168063,2598.9,2598.7,0.06976147]
[1646959194501,0.03168063,2598.9,2598.7,0.0735808]
[1646959194698,0.10820283,2598.6,2598.3,0.39928593]
[1646959194903,0.35820283,2598.6,2598.3,0.39928593]
[1646959195099,0.35820283,2598.6,2598.3,0.09928593]
[1646959195402,0.35820283,2598.6,2597.8,0.07820909]
[1646959195403,3.85820283,2598.6,2597.8,0.07820909]
[1646959196199,0.830626,2598.2,2597.8,0.07820909]
[1646959196503,0.830626,2598.2,2597.7,0.31804968]
[1646959196700,0.830626,2598.2,2597.7,0.01804968]
[1646959196901,0.830626,2598.2,2597.9,0.00168885]
[1646959197741,0.830626,2598.2,2597.7,0.01804968]
[1646959197943,3.5,2598.1,2597.6,0.07145042]
[1646959198144,3.5,2598.1,2597.9,0.00412835]
[1646959198344,1.080626,2598.2,2597.9,0.00412835]
[1646959199042,0.9076662,2597.8,2597.4,0.08996226]
[1646959199441,0.9076662,2597.8,2597.2,0.37134216]
[1646959199643,0.25,2598.2,2597.2,0.37134216]
[1646959199644,0.25,2598.2,2597.2,2.29675476]
[1646959199842,0.25,2598.2,2597.4,0.07908512]
[1646959200052,0.25,2598.2,2598.0,0.06154712]
[1646959200891,0.25,2598.2,2598.0,0.14895522]
[1646959201690,0.25,2598.2,2598.0,0.15307028]
[1646959202293,0.25,2598.2,2598.1,0.08876228]
[1646959205547,0.25,2598.2,2598.1,0.13794938]
[1646959206554,0.25,2598.2,2598.1,0.5111871]
[1646959209192,0.25,2598.2,2598.1,0.4611871]
[1646959210599,0.33694238,2598.2,2598.1,0.0491871]
[1646959210793,0.08694238,2598.2,2598.1,0.0491871]
[1646959216095,0.08694238,2598.2,2598.0,1.32197782]
[1646959216797,0.08694238,2598.2,2598.1,0.09002405]
[1646959220446,0.06996964,2598.2,2598.1,0.15598206]
[1646959231300,0.10820283,2598.6,2598.2,0.96224]
[1646959231507,0.10820283,2598.6,2598.4,1.04478269]
[1646959231699,0.10820283,2598.6,2598.5,0.54927106]
[1646959231899,0.10820283,2598.6,2598.5,0.84927106]
[1646959232098,0.10820283,2598.6,2598.5,0.762]
[1646959233500,0.10820283,2598.6,2598.5,0.3]
[1646959233902,0.10820283,2598.6,2598.3,2.22454]
[1646959234301,0.35820283,2598.6,2598.4,0.00379851]
[1646959235143,0.35820283,2598.6,2598.1,0.06595801]
[1646959235343,1.58931874,2598.5,2598.1,0.06595801]
[1646959235643,0.35820283,2598.6,2598.4,0.00381148]
[1646959236449,0.35820283,2598.6,2598.1,0.06595801]
[1646959239198,0.84046786,2598.3,2598.1,0.06595801]
[1646959239397,0.35820283,2598.6,2598.1,0.06595801]
[1646959239598,1.58930116,2598.5,2598.1,0.06595801]
[1646959240200,1.58930116,2598.5,2598.2,0.00427057]
[1646959240400,1.65265159,2598.5,2598.2,0.00427057]
[1646959240599,1.04773326,2598.5,2598.2,0.00427057]
[1646959240799,1.58934925,2598.4,2598.2,0.00427057]
[1646959241002,1.04773326,2598.5,2598.2,0.00427057]
[1646959241205,1.04773326,2598.5,2597.9,1.34065038]
[1646959241403,1.04773326,2598.5,2598.2,0.00427057]
[1646959242045,1.58934891,2598.4,2598.2,0.00427057]
[1646959242245,1.58934891,2598.4,2597.9,0.07804038]
[1646959242445,1.58934891,2598.4,2597.9,0.37804038]
[1646959242647,1.58934891,2598.4,2598.2,0.00408721]
[1646959243446,1.58934891,2598.4,2597.9,0.07804038]
[1646959243848,1.58934891,2598.4,2598.2,0.00408725]
[1646959244850,1.58934891,2598.4,2598.1,0.07837762]
[1646959245052,1.58934891,2598.4,2598.2,0.00395237]
[1646959245899,1.58934891,2598.4,2598.1,1.04090762]
[1646959246099,1.58934891,2598.4,2598.2,0.00396464]
[1646959246300,0.08210904,2598.5,2598.2,0.00396464]
[1646959247103,0.08210904,2598.5,2598.1,1.04090762]
[1646959247303,0.08210904,2598.5,2598.2,0.0039646]
[1646959247505,1.58934181,2598.4,2598.2,0.0039646]
[1646959248202,0.08210904,2598.5,2598.2,0.0039646]
[1646959248403,0.08210904,2598.5,2598.1,1.04090762]
[1646959248605,0.08210904,2598.5,2598.2,0.38634889]
[1646959248804,0.08210904,2598.5,2598.2,1.26620611]
[1646959249005,0.08210904,2598.5,2598.3,0.07978284]
[1646959249407,0.08210904,2598.5,2598.3,2.00431284]
[1646959249643,0.08210904,2598.5,2598.4,0.07875605]
[1646959250442,0.09857259,2598.5,2598.4,0.07875605]
[1646959255696,0.09763829,2598.5,2598.4,0.07875605]
[1646959255900,0.09763829,2598.5,2598.4,0.1571277]
[1646959266952,0.10820283,2598.6,2598.4,4.1191277]
[1646959267157,1.4085,2599.7,2598.6,3.9]
[1646959267158,2.8559,2599.6,2598.6,3.9]
[1646959267352,1.6585,2599.7,2598.8,0.0799857]
[1646959267353,1.58872962,2599.5,2598.8,0.0799857]
[1646959267656,1.58872962,2599.4,2598.9,0.462]
[1646959267853,0.25,2599.7,2599.0,0.07258469]
[1646959268053,1.58862589,2599.6,2599.0,0.07258469]
[1646959269103,1.58862589,2599.6,2599.1,1.04273329]
[1646959269303,1.58862589,2599.6,2599.2,0.0782807]
[1646959269502,1.58862589,2599.6,2599.3,0.08838588]
[1646959270103,1.58862589,2599.6,2599.4,0.96193]
[1646959270506,0.00381635,2599.9,2599.6,0.96198]
[1646959270704,0.00381635,2599.9,2599.7,0.08050465]
[1646959271114,0.00381635,2599.9,2599.7,0.38050465]
[1646959271115,1.58849594,2599.9,2599.7,0.38050465]
[1646959271314,2.4921,2600.5,2599.7,0.38050465]
[1646959271515,0.00381283,2599.9,2599.8,0.462]
[1646959271714,0.00381283,2599.9,2599.8,0.762]
[1646959271918,0.01524861,2600.4,2599.8,0.762]
[1646959271919,0.01144861,2600.4,2599.9,3.9811013]
[1646959272154,0.01144861,2600.4,2600.2,0.961364]
[1646959272355,0.1922,2601.3,2600.4,0.08871624]
[1646959272556,0.1922,2601.3,2600.7,0.08942485]
[1646959273152,3.5,2601.4,2600.7,0.08942485]
[1646959273351,0.25,2601.5,2601.4,0.00081053]
[1646959273551,0.00116562,2601.0,2600.7,0.38942485]
[1646959273752,0.00116562,2601.0,2600.8,0.96142]
[1646959273955,0.00116562,2601.0,2600.9,0.0812004]
[1646959276913,0.00116562,2601.0,2600.4,2.01357428]
[1646959277114,0.00116562,2601.0,2600.5,1.03532429]
[1646959277115,0.25,2600.9,2600.5,1.03532429]
[1646959277315,0.25,2600.9,2600.6,0.08429731]
[1646959277915,1.058275,2600.8,2600.6,0.08429731]
[1646959278124,3.5,2600.7,2600.6,0.08429731]
[1646959278319,3.5,2600.7,2599.7,0.07800421]
[1646959279117,1.01049902,2600.3,2599.7,0.07800421]
[1646959279321,1.26049902,2600.3,2599.7,0.07800421]
[1646959279962,1.26049902,2600.3,2599.6,0.00412686]
[1646959280160,0.9622,2600.1,2599.6,0.00412686]
[1646959280965,1.00441875,2599.2,2598.9,0.07742134]
[1646959281165,3.40166822,2600.0,2598.9,0.07742134]
[1646959281366,0.9622,2600.1,2598.9,0.07742134]
[1646959282164,0.9622,2600.1,2598.9,2.00167134]
[1646959282367,1.12928773,2600.0,2599.4,0.00412758]
[1646959282971,0.80635295,2599.5,2599.4,0.00412758]
[1646959283408,0.25,2599.7,2599.1,0.07114236]
[1646959283606,0.25,2599.7,2599.6,0.00412745]
[1646959284407,0.25,2599.7,2599.5,0.0736411]
[1646959284808,0.25,2599.7,2599.5,0.07776863]
[1646959285609,0.25,2599.7,2599.5,0.0736411]
[1646959285809,0.25,2599.7,2599.5,0.07776867]
[1646959286809,0.25,2599.7,2599.5,0.0736411]
[1646959287065,0.25,2599.7,2599.5,0.07776867]
[1646959288058,0.25,2599.7,2599.5,0.0736411]
[1646959288258,0.25,2599.7,2599.5,0.07776866]
[1646959289259,0.25,2599.7,2599.5,0.0736411]
[1646959289462,0.25,2599.7,2599.5,0.07776866]
[1646959290059,0.04736742,2599.6,2599.5,0.07776866]
[1646959290461,0.04736742,2599.6,2599.5,0.0736411]
[1646959291904,1.18807162,2599.6,2599.5,0.0736411]
[1646959292304,0.04736742,2599.6,2599.5,0.0736411]
[1646959301712,0.04736742,2599.6,2599.4,2.89010759]
[1646959301915,0.04736742,2599.6,2599.4,2.01027443]
[1646959302157,0.04736742,2599.6,2599.5,0.09024029]
[1646959304263,0.04627673,2599.6,2599.5,0.09024029]
[1646959306206,0.04627673,2599.6,2599.4,0.08605265]
[1646959306405,0.04627673,2599.6,2599.4,0.09018024]
[1646959306812,0.04627673,2599.6,2599.4,0.00412759]
[1646959307008,0.04627673,2599.6,2598.9,0.08298941]
[1646959307009,0.00593409,2599.3,2598.9,0.08298941]
[1646959307209,1.03722549,2599.1,2598.9,0.08298941]
[1646959307411,1.03722549,2599.1,2598.7,0.06884406]
[1646959308809,3.5,2599.0,2598.7,0.06884406]
[1646959309009,3.5,2599.0,2598.7,0.06733051]
[1646959309854,3.5,2599.0,2598.7,0.07176199]
[1646959310355,1.03722549,2599.1,2598.7,1.92924148]
[1646959310554,0.00593409,2599.3,2598.9,0.074466]
[1646959310753,0.00593409,2599.3,2598.9,1.92444]
[1646959310959,0.00593409,2599.3,2599.0,0.07288358]
[1646959311159,0.00593409,2599.3,2599.0,0.37288358]
[1646959311366,0.00593409,2599.3,2599.1,0.96221]
[1646959311564,0.00593409,2599.3,2599.2,0.06964419]
[1646959311763,0.00593409,2599.3,2599.2,1.12814419]
[1646959311965,0.00593409,2599.3,2599.2,1.3585]
[1646959312161,0.02388363,2599.5,2599.2,2.091]
[1646959312362,0.02388363,2599.5,2599.3,1.92368]
[1646959312560,0.02388363,2599.5,2599.3,2.38568]
[1646959312761,0.02387413,2599.5,2599.4,0.3]
[1646959312961,0.02387413,2599.5,2599.4,0.762]
[1646959314607,0.02387413,2599.5,2599.4,0.3]
[1646959315602,0.02381658,2600.0,2599.4,0.3]
[1646959315802,0.02381658,2600.0,2599.6,0.96208]
[1646959316007,0.02816336,2600.0,2599.6,0.96208]
[1646959317061,0.02816369,2600.0,2599.6,0.96208]
[1646959318057,0.02381658,2600.0,2599.6,0.96208]
[1646959318257,0.02793437,2600.0,2599.6,0.96208]
[1646959318659,1.5882409,2599.9,2599.4,1.9241]
[1646959318862,3.5,2599.8,2599.4,1.9241]
[1646959319458,1.58833969,2599.7,2599.4,1.9241]
[1646959319660,3.5,2599.8,2599.4,1.9241]
[1646959319863,1.58834403,2599.7,2599.4,1.9241]
[1646959320060,3.5,2599.8,2599.4,2.88621]
[1646959320260,0.25324522,2599.9,2599.4,2.88621]
[1646959320459,1.58828815,2599.8,2599.4,2.88621]
[1646959322107,1.58828815,2599.8,2599.6,0.08576506]
[1646959322308,3.5,2599.7,2599.6,0.08576506]
[1646959322613,3.5,2599.7,2599.3,0.00414032]
[1646959322614,5.08828815,2599.7,2599.3,0.00414032]
[1646959322812,5.08828815,2599.7,2599.2,1.92428]
[1646959322813,1.58828815,2599.6,2599.2,1.92428]
[1646959323009,3.5,2599.5,2599.1,0.96231]
[1646959323207,1.58828815,2599.4,2599.3,0.00414037]
[1646959323606,1.58828815,2599.8,2599.3,0.00414037]
[1646959323807,5.28058815,2599.7,2599.3,0.00414037]
[1646959324007,0.84695072,2599.4,2599.1,2.00616726]
[1646959324408,0.84695072,2599.4,2599.3,0.00414028]
[1646959324656,1.58843853,2599.4,2599.3,0.00414028]
[1646959324857,5.08843853,2599.6,2599.3,0.00414028]
[1646959325054,1.58843853,2599.5,2599.3,0.00414028]
[1646959325359,1.58843853,2599.4,2599.2,0.08943994]
[1646959325554,1.58843853,2599.4,2599.3,0.00413806]
[1646959325555,0.94831727,2599.4,2599.3,0.00413806]
[1646959326562,3.52368239,2599.7,2599.2,2.01379994]
[1646959326759,1.58838351,2599.6,2599.2,2.01793798]
[1646959327661,1.58838351,2599.6,2599.2,2.01379994]
[1646959327863,1.58838351,2599.6,2599.3,0.00413801]
[1646959328062,0.02368239,2599.7,2599.3,1.05446527]
[1646959328309,0.02368239,2599.7,2599.5,0.07577818]
[1646959328510,0.02368239,2599.7,2599.6,0.08178574]
[1646959329809,0.19643728,2600.0,2599.6,0.96202]
[1646959330115,3.52085028,2600.6,2599.9,0.07190975]
[1646959330310,1.58800854,2600.5,2599.9,0.07190975]
[1646959330514,0.00413728,2600.0,2599.9,0.07190975]
[1646959331113,0.00413728,2600.0,2599.9,1.99560975]
[1646959331314,1.58800854,2600.2,2600.0,0.08693505]
[1646959331514,0.00413745,2600.1,2600.0,0.08693505]
[1646959332554,1.58800854,2600.2,2600.0,0.08693505]
[1646959332752,1.59214593,2600.2,2600.0,0.08693505]
[1646959333558,3.5,2600.1,2600.0,0.08693505]
[1646959333767,0.12479054,2599.9,2599.5,1.92409]
[1646959334159,0.12479054,2599.9,2599.3,0.00413885]
[1646959334357,0.1923,2599.8,2599.3,0.00413885]
[1646959334554,0.24020148,2599.8,2599.3,0.00413885]
[1646959334956,0.24020148,2599.8,2598.7,0.08312918]
[1646959335159,1.00624384,2599.3,2598.8,0.01655624]
[1646959336010,1.00624384,2599.3,2598.9,1.92452]
[1646959336409,1.00624384,2599.3,2598.9,1.92865842]
[1646959337308,1.00624384,2599.3,2598.9,2.88685]
[1646959337509,1.00624384,2599.3,2599.0,0.00414151]
[1646959337710,3.54458043,2599.5,2599.0,0.96645151]
[1646959337910,0.04458043,2599.5,2599.0,0.96645151]
[1646959338312,0.04458043,2599.5,2599.1,1.92447]
[1646959338708,0.04458043,2599.5,2599.1,1.92861141]
[1646959339010,1.10580212,2599.6,2599.2,0.96219]
[1646959339408,0.08956034,2599.3,2599.2,0.96219]
[1646959339657,0.08956034,2599.3,2599.1,1.92447]
[1646959341062,0.08956034,2599.3,2599.1,2.88671]
[1646959341264,0.08956034,2599.3,2599.1,3.19084814]
[1646959342063,0.08956034,2599.3,2599.1,3.18671]
[1646959342263,0.08956034,2599.3,2599.1,2.88671]
[1646959342464,0.08956034,2599.3,2599.1,2.89084814]
[1646959343305,0.08956034,2599.3,2599.1,2.88671]
[1646959343510,0.08956034,2599.3,2599.1,2.89084814]
[1646959344506,0.08956034,2599.3,2599.1,2.88671]
[1646959344709,0.08956034,2599.3,2599.1,1.92860837]
[1646959344910,0.08956034,2599.3,2599.1,0.00413837]
[1646959345110,0.04510567,2599.2,2599.1,0.00413837]
[1646959345314,3.54510567,2599.2,2599.1,0.00413837]
[1646959345713,3.54510567,2599.2,2598.9,0.96222]
[1646959346317,0.96252,2599.1,2598.7,1.92492]
[1646959346518,0.04554727,2598.9,2598.7,1.92492]
[1646959347560,0.244685,2599.1,2598.7,1.92492]
[1646959348164,0.04510567,2599.2,2598.7,1.92492]
[1646959348563,0.04510567,2599.2,2598.8,0.00442804]
[1646959349367,0.04510567,2599.2,2598.9,0.96225]
[1646959349671,0.04510567,2599.2,2598.9,0.96667796]
[1646959350268,0.04468313,2599.0,2598.9,0.96667796]
[1646959350666,0.04468313,2599.0,2598.9,0.96225]
[1646959351116,0.04468313,2599.0,2598.9,0.96667792]
[1646959351917,0.04468313,2599.0,2598.9,0.96225]
[1646959355967,0.08975795,2599.0,2598.9,0.96225]
[1646959357369,0.08869961,2599.0,2598.9,0.96225]
[1646959365159,0.08869961,2599.0,2598.8,0.00412513]
[1646959365560,0.13430637,2599.0,2598.8,0.00412513]
[1646959365807,0.05109706,2598.9,2598.8,0.00412513]
[1646959366014,1.83212632,2598.9,2598.8,0.00412513]
[1646959366214,0.88353547,2598.8,2598.4,1.92508]
[1646959366414,0.88353547,2598.8,2598.7,0.0041252]
[1646959366614,4.38353547,2598.8,2598.7,0.0041252]
[1646959366818,5.38353547,2598.8,2598.7,0.0041252]
[1646959367017,6.97234813,2598.8,2598.7,0.0041252]
[1646959367218,7.93503413,2598.8,2598.7,0.0041252]
[1646959367415,0.0488503,2598.7,2598.0,0.96269]
[1646959367616,0.0488503,2598.7,2598.6,0.00412492]
[1646959367816,3.5488503,2598.7,2598.6,0.00412492]
[1646959368216,6.13773256,2598.7,2598.6,0.00412492]
[1646959368416,5.5115703,2598.7,2598.6,0.00412492]
[1646959368621,0.04385098,2598.6,2597.8,1.92534]
[1646959368819,0.04385098,2598.6,2597.6,2.25947702]
[1646959368820,1.59905859,2598.5,2598.1,0.01650243]
[1646959369019,0.04648422,2598.3,2598.1,0.01650243]
[1646959369217,0.1923,2598.2,2598.1,0.01650243]
[1646959369859,0.1923,2598.2,2597.6,1.87542]
[1646959370061,3.6923,2598.2,2598.0,0.00412531]
[1646959370260,0.04401708,2598.2,2598.0,0.00412531]
[1646959371065,0.04401708,2598.2,2597.6,1.87542]
[1646959371263,0.04401708,2598.2,2598.0,0.00412847]
[1646959372264,0.04401708,2598.2,2597.6,1.87542]
[1646959372465,0.04401708,2598.2,2598.0,0.00412847]
[1646959373513,0.04401708,2598.2,2597.8,0.96275]
[1646959373713,0.04401708,2598.2,2598.0,0.00412847]
[1646959374819,0.04401708,2598.2,2597.8,0.96275]
[1646959375017,0.04401708,2598.2,2598.0,0.00412521]
[1646959375418,0.04489814,2598.1,2598.0,0.00412521]
[1646959375817,0.04489814,2598.1,2597.8,0.96275]
[1646959376019,0.04489814,2598.1,2597.9,0.00412524]
[1646959377072,0.04489814,2598.1,2597.8,0.96275]
[1646959377257,0.04489814,2598.1,2597.9,0.00412527]
[1646959378260,0.04489814,2598.1,2597.8,0.96275]
[1646959378459,0.04489814,2598.1,2597.9,0.0041255]
[1646959379462,0.04489814,2598.1,2597.8,0.96275]
[1646959379666,0.04489814,2598.1,2597.9,0.0041255]
[1646959380570,0.04489814,2598.1,2597.5,1.92566]
[1646959380816,0.2902147,2598.1,2597.9,0.0041255]
[1646959381826,0.2902147,2598.1,2597.8,0.96272]
[1646959382024,0.23719814,2598.1,2597.9,0.00413736]
[1646959382227,0.04489814,2598.1,2597.9,0.00413736]
[1646959383122,0.04489814,2598.1,2597.8,0.96272]
[1646959383320,0.04489814,2598.1,2597.9,0.00413736]
[1646959385459,0.04489814,2598.1,2597.6,1.92543]
[1646959385661,0.04489814,2598.1,2597.9,0.00413656]
[1646959386665,0.04489814,2598.1,2597.8,0.96275]
[1646959386863,0.04489814,2598.1,2597.9,0.00413656]
[1646959387864,0.04489814,2598.1,2597.8,0.96275]
[1646959388065,0.04489814,2598.1,2597.9,0.00413656]
[1646959389011,0.04489814,2598.1,2597.8,0.96275]
[1646959389212,0.04489814,2598.1,2597.9,0.00413583]
[1646959390215,0.04489814,2598.1,2597.8,0.96275]
[1646959390415,0.04489814,2598.1,2597.9,0.00413583]
[1646959391423,0.04489814,2598.1,2597.8,0.96275]
[1646959391619,0.04489814,2598.1,2597.9,0.00413583]
[1646959392669,0.04489814,2598.1,2597.8,0.96275]
[1646959392867,0.04332591,2598.1,2597.9,0.00405932]
[1646959393867,0.04332591,2598.1,2597.8,0.96275]
[1646959394066,0.04332591,2598.1,2597.9,0.00405932]
[1646959395068,0.04332591,2598.1,2597.8,0.96275]
[1646959395282,0.04332591,2598.1,2597.9,0.00405932]
[1646959395470,0.05600576,2598.1,2597.9,0.00405932]
[1646959396416,0.05600576,2598.1,2597.9,0.0041385]
[1646959397316,0.09768174,2598.1,2597.9,0.0041385]
[1646959397518,0.09768174,2598.1,2597.6,1.92543]
[1646959397717,0.09768174,2598.1,2597.9,0.0041385]
[1646959398719,0.09768174,2598.1,2597.6,1.92543]
[1646959398919,0.09768174,2598.1,2597.9,0.0041385]
[1646959399767,0.09768174,2598.1,2597.6,1.92543]
[1646959400171,0.09768174,2598.1,2597.9,0.00413566]
[1646959400971,0.09768174,2598.1,2597.6,1.92543]
[1646959401471,0.09768174,2598.1,2597.9,0.00413566]
[1646959402071,0.05600576,2598.1,2597.9,0.00413566]
[1646959402274,0.05600576,2598.1,2597.8,0.96275]
[1646959402474,0.05600576,2598.1,2597.9,0.00413566]
[1646959403516,0.05600576,2598.1,2597.8,0.96275]
[1646959403716,0.05600576,2598.1,2597.9,0.00413595]
[1646959404718,0.05600576,2598.1,2597.8,0.96275]
[1646959404920,0.05600576,2598.1,2597.9,0.00413595]
[1646959405818,0.05600576,2598.1,2597.8,0.96275]
[1646959406024,0.05600576,2598.1,2597.9,0.00413595]
[1646959407074,0.05600576,2598.1,2597.8,0.96275]
[1646959407264,0.05600576,2598.1,2597.9,0.00413592]
[1646959408269,0.05600576,2598.1,2597.8,0.96275]
[1646959408465,0.05600576,2598.1,2597.9,0.00413592]
[1646959409467,1.58911443,2598.0,2597.6,1.92543]
[1646959409865,1.58911443,2598.0,2597.9,0.00413592]
[1646959410267,2.46695516,2598.0,2597.9,0.00413592]
[1646959410467,6.02290476,2598.0,2597.9,0.00413592]
[1646959410673,6.32290476,2598.0,2597.5,0.01654615]
[1646959410926,1.82357608,2597.9,2597.8,0.00413595]
[1646959411119,0.00616331,2597.7,2597.4,0.01654629]
[1646959411323,1.78141443,2597.6,2597.4,0.01654629]
[1646959411523,5.08911443,2597.5,2597.4,0.01654629]
[1646959411918,0.97005304,2597.1,2596.9,0.00656]
[1646959412521,1.93332304,2597.1,2596.9,0.00656]
[1646959412722,2.89658794,2597.1,2596.9,0.00656]
[1646959414570,2.89658794,2597.1,2596.9,0.01097246]
[1646959415361,2.89658794,2597.1,2596.9,0.00656]
[1646959415763,2.89658794,2597.1,2596.9,0.01097246]
[1646959415966,2.89658794,2597.1,2597.0,0.00085044]
[1646959416175,6.39658794,2597.1,2597.0,0.00085044]
[1646959416369,9.17883721,2597.1,2597.0,0.00085044]
[1646959416570,9.17883721,2597.1,2597.0,5.044e-05]
[1646959416571,9.47883721,2597.1,2597.0,5.044e-05]
[1646959416967,4.10151206,2597.0,2596.9,0.01097242]
[1646959417169,7.81099133,2597.0,2596.9,0.01097242]
[1646959417367,12.31099133,2597.0,2596.9,0.01097242]
[1646959417570,0.4109,2596.9,2596.5,0.01765233]
[1646959417770,3.0,2596.7,2596.5,0.03077233]
[1646959417969,3.0,2596.7,2596.5,0.01312]
[1646959417970,6.24594927,2596.6,2596.5,0.01312]
[1646959418169,7.07499955,2596.6,2596.5,0.01312]
[1646959418417,8.07499955,2596.6,2596.4,0.0255266]
[1646959418616,3.5,2596.5,2596.4,0.0255266]
[1646959418820,4.6925,2596.5,2596.4,0.0255266]
[1646959419019,6.282801,2596.5,2596.4,0.0255266]
[1646959419422,4.6925,2596.5,2596.4,0.0255266]
[1646959419819,5.6925,2596.5,2596.4,0.0255266]
[1646959420020,1.1925,2596.5,2596.4,0.0255266]
[1646959420224,1.38385028,2596.6,2596.4,0.0255266]
[1646959420225,2.08385028,2596.6,2596.4,0.0255266]
[1646959420622,1.08385028,2596.6,2596.4,0.0255266]
[1646959421625,1.08385028,2596.6,2596.4,0.02979289]
[1646959421825,3.5,2596.5,2596.4,0.02979289]
[1646959422673,3.5,2596.5,2596.4,0.0255266]
[1646959424475,4.46349,2596.5,2596.4,0.0255266]
[1646959425073,4.57457236,2596.5,2596.4,0.0255266]
[1646959425275,1.07457236,2596.5,2596.4,0.0255266]
[1646959425919,0.11108236,2596.5,2596.4,0.0255266]
[1646959426322,0.16139644,2596.5,2596.4,0.0255266]
[1646959430373,0.21676185,2596.5,2596.4,0.0255266]
[1646959430779,0.16644777,2596.5,2596.4,0.0255266]
[1646959436229,3.72051525,2596.5,2596.4,0.0255266]
[1646959436426,3.91301525,2596.5,2596.4,0.0255266]
[1646959437269,4.87649525,2596.5,2596.4,0.0255266]
[1646959440669,3.91301525,2596.5,2596.4,0.0255266]
[1646959441123,3.72051525,2596.5,2596.4,0.0255266]
[1646959441522,0.22051525,2596.5,2596.4,0.0255266]
[1646959448414,0.16644777,2596.5,2596.4,0.0255266]
[1646959449821,0.16544245,2596.5,2596.4,0.0255266]
[1646959450824,2.8,2596.4,2596.0,1.36603118]